[Event "FIDE U16 Olympiad_boards_1-80"]
[Site "Eindhoven, Netherlands"]
[Date "2023.08.14"]
[Round "3.28"]
[White "Patole, Noam"]
[Black "Zito, Enrica"]
[Result "1-0"]
[TimeControl "2700+10"]
[WhiteElo "1916"]
[BlackElo "1625"]

1. e4 {[%clk 00:42:05]} {[%emt 00:03:14]} c5 {[%clk 00:45:19]} {[%emt
00:00:02]} 2. Nf3 {[%clk 00:42:06]} {[%emt 00:00:09]} e6 {[%clk 00:45:28]}
{[%emt 00:00:02]} 3. d4 {[%clk 00:42:07]} {[%emt 00:00:09]} cxd4 {[%clk
00:45:36]} {[%emt 00:00:01]} 4. Nxd4 {[%clk 00:42:15]} {[%emt 00:00:02]} Nc6
{[%clk 00:45:45]} {[%emt 00:00:01]} 5. Nc3 {[%clk 00:41:24]} {[%emt 00:01:01]}
Qc7 {[%clk 00:45:54]} {[%emt 00:00:02]} 6. Be2 {[%clk 00:41:18]} {[%emt
00:00:16]} a6 {[%clk 00:46:02]} {[%emt 00:00:02]} 7. O-O {[%clk 00:41:22]}
{[%emt 00:00:06]} Nf6 {[%clk 00:46:11]} 8. a3 {[%clk 00:40:47]} {[%emt
00:00:44]} Be7 {[%clk 00:45:43]} {[%emt 00:00:38]} 9. Be3 {[%clk 00:40:39]}
{[%emt 00:00:18]} d6 {[%clk 00:44:23]} {[%emt 00:01:30]} 10. Qd2 {[%clk
00:39:59]} {[%emt 00:00:50]} Bd7 {[%clk 00:43:06]} {[%emt 00:01:28]} 11. h3
{[%clk 00:38:03]} {[%emt 00:02:05]} Rd8 {[%clk 00:41:48]} {[%emt 00:01:28]} 12.
Rad1 {[%clk 00:36:20]} {[%emt 00:01:54]} Nxd4 {[%clk 00:41:15]} {[%emt
00:00:43]} 13. Bxd4 {[%clk 00:36:03]} {[%emt 00:00:25]} Bc6 {[%clk 00:40:53]}
{[%emt 00:00:33]} 14. Qe3 {[%clk 00:35:53]} {[%emt 00:00:19]} Qc8 {[%clk
00:37:16]} {[%emt 00:03:48]} 15. f4 {[%clk 00:31:17]} {[%emt 00:04:46]} O-O
{[%clk 00:34:33]} {[%emt 00:02:54]} 16. Bb6 {[%clk 00:29:34]} {[%emt 00:01:52]}
Rde8 {[%clk 00:32:10]} {[%emt 00:02:33]} 17. Bf3 {[%clk 00:29:14]} {[%emt
00:00:30]} Nd7 {[%clk 00:30:04]} {[%emt 00:02:16]} 18. Ba5 {[%emt 00:05:21]} d5
{[%clk 00:28:50]} 19. Bb4 {[%clk 00:25:05]} {[%emt 00:00:31]} Bxb4 {[%clk
00:28:58]} {[%emt 00:00:02]} 20. axb4 {[%clk 00:25:14]} {[%emt 00:00:01]} Nf6
{[%clk 00:23:48]} {[%emt 00:05:21]} 21. e5 {[%clk 00:24:12]} {[%emt 00:01:12]}
Nd7 {[%clk 00:23:32]} {[%emt 00:00:26]} 22. Rfe1 {[%clk 00:24:00]} {[%emt
00:00:22]} Qb8 {[%clk 00:22:45]} {[%emt 00:00:57]} 23. Qd4 {[%clk 00:23:47]}
{[%emt 00:00:23]} Rc8 {[%clk 00:21:27]} {[%emt 00:01:28]} 24. f5 {[%clk
00:21:52]} {[%emt 00:02:04]} b5 {[%clk 00:18:35]} {[%emt 00:03:01]} 25. Kh1
{[%clk 00:17:22]} {[%emt 00:04:40]} exf5 {[%clk 00:13:49]} {[%emt 00:04:57]} 26.
Bxd5 {[%clk 00:17:01]} {[%emt 00:00:32]} Nb6 {[%clk 00:13:40]} {[%emt
00:00:18]} 27. e6 {[%clk 00:14:24]} {[%emt 00:02:47]} Bxd5 {[%clk 00:11:38]}
{[%emt 00:02:12]} 28. Nxd5 {[%clk 00:14:28]} {[%emt 00:00:05]} Nxd5 {[%clk
00:11:38]} {[%emt 00:00:11]} 29. Qxd5 {[%clk 00:14:06]} {[%emt 00:00:32]} fxe6
{[%clk 00:11:40]} {[%emt 00:00:08]} 30. Qxe6+ {[%clk 00:14:14]} {[%emt
00:00:02]} Kh8 {[%clk 00:11:50]} {[%emt 00:00:01]} 31. c3 {[%clk 00:14:21]}
{[%emt 00:00:02]} Rf6 {[%clk 00:10:59]} {[%emt 00:01:01]} 32. Qd7 {[%clk
00:13:45]} {[%emt 00:00:45]} Rcf8 {[%clk 00:09:26]} {[%emt 00:01:44]} 33. Re7
{[%clk 00:13:15]} {[%emt 00:00:40]} Qg3 {[%clk 00:06:58]} {[%emt 00:02:39]} 34.
Rf1 {[%clk 00:11:19]} {[%emt 00:02:05]} f4 {[%clk 00:06:38]} {[%emt 00:00:30]}
35. Re8 {[%clk 00:10:01]} {[%emt 00:01:28]} h6 {[%clk 00:06:06]} {[%emt
00:00:43]} 36. Qe7 {[%clk 00:09:07]} {[%emt 00:01:03]} Rxe8 {[%clk 00:05:17]}
{[%emt 00:00:59]} 37. Qxe8+ {[%clk 00:09:14]} {[%emt 00:00:03]} Kh7 {[%clk
00:05:25]} {[%emt 00:00:02]} 38. Qe4+ {[%clk 00:09:04]} {[%emt 00:00:19]} Kg8
{[%clk 00:05:27]} {[%emt 00:00:09]} 39. Rd1 {[%clk 00:08:39]} {[%emt 00:00:35]}
Rf8 {[%clk 00:05:14]} {[%emt 00:00:23]} 40. Rd3 {[%clk 00:08:05]} {[%emt
00:00:44]} Qg5 {[%clk 00:05:20]} {[%emt 00:00:04]} 41. Qe6+ {[%clk 00:07:50]}
{[%emt 00:00:25]} Kh7 {[%clk 00:05:24]} {[%emt 00:00:06]} 42. b3 {[%clk
00:06:06]} {[%emt 00:01:54]} Rf6 {[%clk 00:04:21]} {[%emt 00:01:13]} 43. Qe4+
{[%clk 00:04:25]} {[%emt 00:01:51]} Qg6 {[%clk 00:04:31]} {[%emt 00:00:01]} 44.
Qxg6+ {[%clk 00:04:15]} {[%emt 00:00:19]} Kxg6 {[%clk 00:04:40]} {[%emt
00:00:02]} 45. c4 {[%clk 00:04:24]} {[%emt 00:00:01]} bxc4 {[%clk 00:03:35]}
{[%emt 00:01:14]} 46. bxc4 {[%clk 00:04:33]} {[%emt 00:00:02]} Rb6 {[%clk
00:03:16]} {[%emt 00:00:28]} 47. Ra3 {[%clk 00:03:31]} {[%emt 00:01:12]} Kf5
{[%clk 00:02:56]} {[%emt 00:00:31]} 48. c5 {[%clk 00:03:03]} {[%emt 00:00:37]}
Rc6 {[%clk 00:02:29]} {[%emt 00:00:38]} 49. Rd3 {[%clk 00:03:11]} {[%emt
00:00:01]} Ke5 {[%clk 00:02:09]} {[%emt 00:00:30]} 50. Kg1 {[%clk 00:02:48]}
{[%emt 00:00:33]} a5 {[%clk 00:02:12]} {[%emt 00:00:07]} 51. bxa5 {[%clk
00:02:56]} {[%emt 00:00:02]} Rxc5 {[%clk 00:02:22]} {[%emt 00:00:01]} 52. Ra3
{[%clk 00:03:05]} Rc7 {[%clk 00:02:31]} {[%emt 00:00:01]} 53. a6 {[%clk
00:03:11]} {[%emt 00:00:03]} Ra7 {[%clk 00:02:40]} 54. Kf2 {[%clk 00:03:19]}
{[%emt 00:00:02]} g5 {[%clk 00:02:15]} {[%emt 00:00:35]} 55. Kf3 {[%clk
00:03:23]} {[%emt 00:00:06]} Kf5 {[%clk 00:02:19]} {[%emt 00:00:07]} 56. Ra5+
{[%clk 00:03:30]} {[%emt 00:00:02]} Kf6 {[%clk 00:02:28]} {[%emt 00:00:01]} 57.
h4 {[%clk 00:03:23]} {[%emt 00:00:18]} Kg6 {[%clk 00:01:39]} {[%emt 00:00:59]}
58. hxg5 {[%clk 00:02:45]} {[%emt 00:00:47]} hxg5 {[%clk 00:01:48]} {[%emt
00:00:01]} 59. Ke4 {[%clk 00:02:53]} {[%emt 00:00:02]} Kf6 {[%clk 00:01:44]}
{[%emt 00:00:14]} 60. Kd5 {[%clk 00:02:58]} {[%emt 00:00:05]} g4 {[%clk
00:01:51]} {[%emt 00:00:03]} 61. Kc6 {[%clk 00:02:34]} {[%emt 00:00:34]} f3
{[%clk 00:01:18]} {[%emt 00:00:44]} 62. gxf3 {[%clk 00:02:39]} {[%emt
00:00:04]} g3 {[%clk 00:01:16]} {[%emt 00:00:12]} 63. Kb6 {[%clk 00:02:41]}
{[%emt 00:00:08]} Rxa6+ {[%clk 00:01:26]} 64. Rxa6 {[%clk 00:02:11]} {[%emt
00:00:39]} Kf5 {[%clk 00:01:35]} {[%emt 00:00:01]} 65. Ra8 {[%clk 00:02:02]}
{[%emt 00:00:19]} Kf4 {[%clk 00:01:42]} {[%emt 00:00:03]} 66. Rf8+ {[%clk
00:02:11]} {[%emt 00:00:01]} Ke3 {[%clk 00:01:51]} {[%emt 00:00:01]} 67. f4
{[%clk 00:02:19]} {[%emt 00:00:02]} 1-0

[Event "FIDE U16 Olympiad_boards_1-80"]
[Site "Eindhoven, Netherlands"]
[Date "2023.08.14"]
[Round "3.29"]
[White "Milikow, Elie"]
[Black "Makridis, Dimitrios"]
[Result "0-1"]
[TimeControl "2700+10"]
[WhiteElo "2319"]
[BlackElo "2264"]

1. e4 {[%clk 00:45:15]} {[%emt 00:00:05]} c5 {[%clk 00:45:14]} {[%emt
00:00:06]} 2. Nf3 {[%clk 00:45:19]} {[%emt 00:00:05]} d6 {[%clk 00:45:17]}
{[%emt 00:00:08]} 3. d4 {[%clk 00:45:25]} {[%emt 00:00:04]} cxd4 {[%clk
00:45:24]} {[%emt 00:00:04]} 4. Nxd4 {[%clk 00:45:30]} {[%emt 00:00:05]} Nf6
{[%clk 00:45:29]} {[%emt 00:00:04]} 5. Nc3 {[%clk 00:45:26]} {[%emt 00:00:14]}
a6 {[%clk 00:45:34]} {[%emt 00:00:05]} 6. f3 {[%clk 00:45:02]} {[%emt
00:00:34]} e5 {[%clk 00:45:16]} {[%emt 00:00:29]} 7. Nb3 {[%clk 00:45:04]}
{[%emt 00:00:08]} Be6 {[%clk 00:45:13]} {[%emt 00:00:12]} 8. Be3 {[%clk
00:45:05]} {[%emt 00:00:10]} h5 {[%clk 00:45:07]} {[%emt 00:00:16]} 9. Be2
{[%clk 00:43:22]} {[%emt 00:01:53]} Nbd7 {[%clk 00:43:39]} {[%emt 00:01:38]} 10.
Nd5 {[%clk 00:39:14]} {[%emt 00:04:17]} Bxd5 {[%clk 00:43:34]} {[%emt
00:00:16]} 11. exd5 {[%clk 00:39:16]} {[%emt 00:00:08]} g6 {[%clk 00:42:06]}
{[%emt 00:01:37]} 12. O-O {[%clk 00:38:08]} {[%emt 00:01:18]} Bh6 {[%clk
00:37:54]} {[%emt 00:04:22]} 13. Bxh6 {[%clk 00:37:04]} {[%emt 00:01:15]} Rxh6
{[%clk 00:38:00]} {[%emt 00:00:03]} 14. Qd2 {[%clk 00:36:56]} {[%emt 00:00:18]}
Rh8 {[%clk 00:38:00]} {[%emt 00:00:10]} 15. Kh1 {[%clk 00:27:44]} {[%emt
00:09:22]} h4 {[%clk 00:35:47]} {[%emt 00:02:22]} 16. Rfd1 {[%clk 00:19:43]}
{[%emt 00:08:12]} Nh5 {[%clk 00:34:38]} {[%emt 00:01:19]} 17. Qe3 {[%clk
00:19:04]} {[%emt 00:00:49]} Nf4 {[%clk 00:33:18]} {[%emt 00:01:30]} 18. Bf1
{[%clk 00:17:33]} {[%emt 00:01:42]} Nf6 {[%clk 00:31:25]} {[%emt 00:02:01]} 19.
c4 {[%clk 00:13:24]} {[%emt 00:04:20]} N6h5 {[%clk 00:30:49]} {[%emt 00:00:46]}
20. Rd2 {[%clk 00:05:10]} {[%emt 00:08:25]} Qg5 {[%clk 00:29:20]} {[%emt
00:01:38]} 21. Re1 {[%clk 00:04:07]} {[%emt 00:01:13]} Ng3+ {[%clk 00:27:49]}
{[%emt 00:01:41]} 22. Kg1 {[%clk 00:04:07]} {[%emt 00:00:10]} Nf5 {[%clk
00:27:25]} {[%emt 00:00:33]} 23. Qc3 {[%clk 00:01:47]} {[%emt 00:02:31]} Nh3+
{[%clk 00:27:18]} {[%emt 00:00:16]} 24. Kh1 {[%clk 00:01:52]} {[%emt 00:00:05]}
Ng3+ {[%clk 00:27:19]} {[%emt 00:00:10]} 25. hxg3 {[%clk 00:01:46]} {[%emt
00:00:16]} Nf2+ {[%clk 00:27:25]} {[%emt 00:00:05]} 26. Kg1 {[%clk 00:01:39]}
{[%emt 00:00:17]} hxg3 {[%clk 00:27:30]} {[%emt 00:00:05]} 27. Rxf2 {[%clk
00:00:18]} {[%emt 00:01:31]} Rh1+ {[%clk 00:27:34]} {[%emt 00:00:05]} 0-1

[Event "FIDE U16 Olympiad_boards_1-80"]
[Site "Eindhoven, Netherlands"]
[Date "2023.08.14"]
[Round "3.30"]
[White "Magkalakis, Stefanos"]
[Black "Vagman, Roy"]
[Result "1/2-1/2"]
[TimeControl "2700+10"]
[WhiteElo "2091"]
[BlackElo "2190"]

1. Nf3 {[%clk 00:45:16]} {[%emt 00:00:04]} d5 {[%clk 00:45:14]} {[%emt
00:00:07]} 2. g3 {[%clk 00:45:18]} {[%emt 00:00:08]} Nc6 {[%clk 00:45:16]}
{[%emt 00:00:07]} 3. d4 {[%clk 00:45:20]} {[%emt 00:00:08]} Bf5 {[%clk
00:45:24]} {[%emt 00:00:02]} 4. Bg2 {[%clk 00:44:43]} {[%emt 00:00:47]} Nb4
{[%clk 00:45:29]} {[%emt 00:00:05]} 5. Na3 {[%clk 00:44:47]} {[%emt 00:00:06]}
e6 {[%clk 00:45:27]} {[%emt 00:00:12]} 6. O-O {[%clk 00:43:38]} {[%emt
00:01:19]} Be7 {[%clk 00:45:35]} {[%emt 00:00:03]} 7. Ne5 {[%clk 00:43:17]}
{[%emt 00:00:31]} Nf6 {[%clk 00:43:36]} {[%emt 00:02:09]} 8. c3 {[%clk
00:42:52]} {[%emt 00:00:35]} Nc6 {[%clk 00:43:43]} {[%emt 00:00:02]} 9. Qa4
{[%clk 00:42:53]} {[%emt 00:00:09]} O-O {[%clk 00:43:45]} {[%emt 00:00:08]} 10.
Nxc6 {[%clk 00:42:48]} {[%emt 00:00:16]} bxc6 {[%clk 00:43:53]} {[%emt
00:00:02]} 11. Qxc6 {[%clk 00:42:41]} {[%emt 00:00:17]} Rb8 {[%clk 00:43:58]}
{[%emt 00:00:04]} 12. Nb1 {[%clk 00:38:55]} {[%emt 00:03:56]} Bc2 {[%clk
00:39:43]} {[%emt 00:04:26]} 13. b3 {[%clk 00:33:15]} {[%emt 00:05:50]} Rb6
{[%clk 00:38:53]} {[%emt 00:00:59]} 14. Qa4 {[%clk 00:31:09]} {[%emt 00:02:16]}
Qc8 {[%clk 00:38:50]} {[%emt 00:00:13]} 15. e3 {[%clk 00:17:47]} {[%emt
00:13:33]} c6 {[%clk 00:31:19]} {[%emt 00:07:41]} 16. Qxa7 {[%clk 00:09:49]}
{[%emt 00:08:09]} Nd7 {[%clk 00:30:46]} {[%emt 00:00:42]} 17. Ba3 {[%clk
00:09:27]} {[%emt 00:00:31]} c5 {[%clk 00:25:22]} {[%emt 00:05:35]} 18. Qa4
{[%clk 00:07:56]} {[%emt 00:01:41]} Ra6 {[%clk 00:24:55]} {[%emt 00:00:37]} 19.
Qb5 {[%clk 00:08:01]} {[%emt 00:00:04]} Bxb1 {[%clk 00:24:57]} {[%emt
00:00:08]} 20. Bxc5 {[%clk 00:06:30]} {[%emt 00:01:41]} Nxc5 {[%clk 00:22:50]}
{[%emt 00:02:17]} 21. Rfxb1 {[%clk 00:06:17]} {[%emt 00:00:23]} Nd7 {[%clk
00:19:54]} {[%emt 00:03:06]} 22. Qd3 {[%clk 00:06:05]} {[%emt 00:00:22]} Ra3
{[%clk 00:19:59]} {[%emt 00:00:06]} 23. Rc1 {[%clk 00:05:29]} {[%emt 00:00:46]}
Nb6 {[%clk 00:20:06]} {[%emt 00:00:03]} 24. Qe2 {[%clk 00:05:30]} {[%emt
00:00:09]} Qc7 {[%clk 00:16:56]} {[%emt 00:03:19]} 25. c4 {[%clk 00:05:23]}
{[%emt 00:00:17]} Qa7 {[%clk 00:16:35]} {[%emt 00:00:31]} 26. cxd5 {[%clk
00:04:42]} {[%emt 00:00:52]} Nxd5 {[%clk 00:16:35]} {[%emt 00:00:10]} 27. Bxd5
{[%clk 00:04:46]} {[%emt 00:00:05]} exd5 {[%clk 00:16:42]} {[%emt 00:00:04]} 28.
Kg2 {[%clk 00:02:54]} {[%emt 00:02:02]} Ra8 {[%clk 00:16:08]} {[%emt 00:00:43]}
29. Rc2 {[%clk 00:01:37]} {[%emt 00:01:28]} Rxb3 {[%clk 00:14:17]} {[%emt
00:02:01]} 30. axb3 {[%clk 00:00:43]} {[%emt 00:01:04]} Qxa1 {[%clk 00:14:25]}
{[%emt 00:00:02]} 31. Rc7 {[%clk 00:00:32]} {[%emt 00:00:20]} Qa3 {[%clk
00:13:07]} {[%emt 00:01:29]} 32. Qb5 {[%clk 00:00:33]} {[%emt 00:00:10]} Rd8
{[%clk 00:13:04]} {[%emt 00:00:12]} 33. Qb7 {[%clk 00:00:31]} {[%emt 00:00:12]}
Kf8 {[%clk 00:12:48]} {[%emt 00:00:26]} 34. h4 {[%clk 00:00:38]} {[%emt
00:00:02]} Qb4 {[%clk 00:12:32]} {[%emt 00:00:26]} 35. Qa7 {[%clk 00:00:31]}
{[%emt 00:00:18]} Re8 {[%clk 00:11:34]} {[%emt 00:01:08]} 36. Rb7 {[%clk
00:00:38]} {[%emt 00:00:03]} Qd6 {[%clk 00:11:31]} {[%emt 00:00:12]} 37. Rd7
{[%clk 00:00:44]} {[%emt 00:00:04]} Qc6 {[%clk 00:10:34]} {[%emt 00:01:07]} 38.
Rc7 {[%clk 00:00:24]} {[%emt 00:00:31]} Qe6 {[%clk 00:10:44]} 39. Qb7 {[%clk
00:00:19]} {[%emt 00:00:14]} Rd8 {[%clk 00:08:38]} {[%emt 00:02:16]} 40. Rc6
{[%clk 00:00:18]} {[%emt 00:00:11]} Qe4+ {[%clk 00:08:40]} {[%emt 00:00:07]} 41.
Kg1 {[%clk 00:00:19]} {[%emt 00:00:09]} g6 {[%clk 00:08:25]} {[%emt 00:00:26]}
42. Rc8 {[%clk 00:00:22]} {[%emt 00:00:08]} Rxc8 {[%clk 00:08:22]} {[%emt
00:00:12]} 43. Qxc8+ {[%clk 00:00:30]} {[%emt 00:00:02]} Kg7 {[%clk 00:08:31]}
{[%emt 00:00:01]} 44. Qb7 {[%clk 00:00:28]} {[%emt 00:00:11]} Bf8 {[%clk
00:08:25]} {[%emt 00:00:16]} 45. Kh2 {[%clk 00:00:31]} {[%emt 00:00:08]} h6
{[%clk 00:08:34]} 46. b4 {[%clk 00:00:25]} {[%emt 00:00:16]} Bd6 {[%clk
00:07:17]} {[%emt 00:01:27]} 47. b5 {[%clk 00:00:23]} {[%emt 00:00:12]} g5
{[%clk 00:06:11]} {[%emt 00:01:16]} 48. hxg5 {[%clk 00:00:22]} {[%emt
00:00:11]} hxg5 {[%clk 00:04:32]} {[%emt 00:01:49]} 49. b6 {[%clk 00:00:27]}
{[%emt 00:00:05]} Qc2 {[%clk 00:03:19]} {[%emt 00:01:24]} 50. Kg2 {[%clk
00:00:29]} {[%emt 00:00:07]} Qe4+ {[%clk 00:02:17]} {[%emt 00:01:12]} 51. Kg1
{[%clk 00:00:37]} {[%emt 00:00:02]} Bb4 {[%clk 00:01:33]} {[%emt 00:00:53]} 52.
Qc7 {[%clk 00:00:28]} {[%emt 00:00:19]} Ba5 {[%clk 00:01:31]} {[%emt 00:00:12]}
53. Qd6 {[%clk 00:00:25]} {[%emt 00:00:13]} Qb1+ {[%clk 00:01:11]} {[%emt
00:00:30]} 54. Kg2 {[%clk 00:00:35]} {[%emt 00:00:01]} Qb5 {[%clk 00:00:53]}
{[%emt 00:00:27]} 55. Qe5+ {[%clk 00:00:43]} {[%emt 00:00:03]} Kg6 {[%clk
00:00:59]} {[%emt 00:00:04]} 56. g4 {[%clk 00:00:30]} {[%emt 00:00:23]} Qd7
{[%clk 00:00:35]} {[%emt 00:00:34]} 57. b7 {[%clk 00:00:18]} {[%emt 00:00:22]}
Qxb7 {[%clk 00:00:15]} {[%emt 00:00:31]} 58. Qf5+ {[%clk 00:00:25]} {[%emt
00:00:03]} Kh6 {[%clk 00:00:20]} {[%emt 00:00:05]} 59. Qf6+ {[%clk 00:00:34]}
Kh7 {[%clk 00:00:29]} 60. Qf5+ {[%clk 00:00:31]} {[%emt 00:00:13]} Kg7 {[%clk
00:00:33]} {[%emt 00:00:06]} 61. Qxg5+ {[%clk 00:00:39]} {[%emt 00:00:02]} Kf8
{[%clk 00:00:43]} 62. Qh6+ {[%clk 00:00:38]} {[%emt 00:00:11]} Ke7 {[%clk
00:00:35]} {[%emt 00:00:18]} 63. Qg5+ {[%clk 00:00:46]} {[%emt 00:00:02]} Kd7
{[%clk 00:00:27]} {[%emt 00:00:17]} 64. Qf5+ {[%clk 00:00:55]} {[%emt
00:00:02]} Ke8 {[%clk 00:00:34]} {[%emt 00:00:03]} 65. Qe5+ {[%clk 00:01:01]}
{[%emt 00:00:04]} Kd8 {[%clk 00:00:33]} {[%emt 00:00:10]} 66. Qd6+ {[%clk
00:01:06]} {[%emt 00:00:06]} Ke8 {[%clk 00:00:31]} {[%emt 00:00:12]} 67. Qe5+
{[%clk 00:01:15]} {[%emt 00:00:02]} Kf8 {[%clk 00:00:31]} {[%emt 00:00:09]} 68.
Qh8+ {[%clk 00:01:23]} {[%emt 00:00:02]} Ke7 {[%clk 00:00:40]} {[%emt
00:00:01]} 69. Qe5+ {[%clk 00:01:32]} {[%emt 00:00:01]} Kd7 {[%clk 00:00:46]}
{[%emt 00:00:03]} 70. Qf5+ {[%clk 00:01:40]} {[%emt 00:00:02]} Kc6 {[%clk
00:00:40]} {[%emt 00:00:17]} 71. Qf6+ {[%clk 00:01:40]} {[%emt 00:00:10]} Kb5
{[%clk 00:00:46]} {[%emt 00:00:03]} 72. Qf5 {[%clk 00:01:34]} {[%emt 00:00:17]}
Kc4 {[%clk 00:00:38]} {[%emt 00:00:17]} 73. Qc2+ {[%clk 00:01:32]} {[%emt
00:00:13]} Bc3 {[%clk 00:00:47]} {[%emt 00:00:01]} 74. Qa4+ {[%clk 00:01:20]}
{[%emt 00:00:22]} Kd3 {[%clk 00:00:50]} {[%emt 00:00:07]} 75. Qd1+ {[%clk
00:01:16]} {[%emt 00:00:15]} Bd2 {[%clk 00:00:40]} {[%emt 00:00:19]} 76. Qf3
{[%clk 00:01:24]} {[%emt 00:00:01]} Qd7 {[%clk 00:00:31]} {[%emt 00:00:18]} 77.
Kf1 {[%clk 00:01:15]} {[%emt 00:00:21]} Kc3 {[%clk 00:00:41]} 78. Qd1 {[%clk
00:00:57]} {[%emt 00:00:27]} Qe6 {[%clk 00:00:24]} {[%emt 00:00:27]} 79. Qa1+
{[%clk 00:00:56]} {[%emt 00:00:11]} Kb3 {[%clk 00:00:33]} 80. Qb1+ {[%clk
00:00:59]} {[%emt 00:00:07]} Kc4 {[%clk 00:00:32]} {[%emt 00:00:11]} 81. Qa2+
{[%clk 00:01:04]} {[%emt 00:00:04]} Kd3 {[%clk 00:00:37]} {[%emt 00:00:06]} 82.
Qb1+ {[%clk 00:01:13]} Kc3 {[%clk 00:00:45]} {[%emt 00:00:01]} 83. Qa1+ {[%clk
00:01:22]} {[%emt 00:00:02]} Kb3 {[%clk 00:00:45]} {[%emt 00:00:09]} 84. Qb1+
{[%clk 00:01:31]} {[%emt 00:00:02]} Kc3 {[%clk 00:00:25]} {[%emt 00:00:30]} 85.
Qa1+ {[%clk 00:01:40]} Kc2 {[%clk 00:00:18]} {[%emt 00:00:17]} 86. Qa2+ {[%clk
00:01:42]} {[%emt 00:00:08]} Kc1 {[%clk 00:00:26]} {[%emt 00:00:01]} 87. Qa1+
{[%clk 00:01:50]} {[%emt 00:00:02]} Kc2 {[%clk 00:00:36]} {[%emt 00:00:01]} 88.
Qa2+ {[%clk 00:01:59]} Kc3 {[%clk 00:00:31]} {[%emt 00:00:14]} 89. Qa1+ {[%clk
00:02:08]} {[%emt 00:00:02]} 1/2-1/2

[Event "FIDE U16 Olympiad_boards_1-80"]
[Site "Eindhoven, Netherlands"]
[Date "2023.08.14"]
[Round "3.31"]
[White "Uritsky, Yonathan"]
[Black "Gkavardinas, Antonios"]
[Result "0-1"]
[TimeControl "2700+10"]
[WhiteElo "2074"]
[BlackElo "1978"]

1. Nc3 {[%clk 00:45:19]} d5 {[%clk 00:44:51]} {[%emt 00:00:30]} 2. Nf3 {[%clk
00:45:27]} {[%emt 00:00:02]} Nf6 {[%clk 00:43:56]} {[%emt 00:01:04]} 3. d3
{[%clk 00:45:35]} {[%emt 00:00:03]} Bg4 {[%clk 00:42:51]} {[%emt 00:01:14]} 4.
g3 {[%clk 00:44:38]} {[%emt 00:01:08]} c6 {[%clk 00:42:09]} {[%emt 00:00:52]} 5.
Bg2 {[%clk 00:44:30]} {[%emt 00:00:16]} Nbd7 {[%clk 00:41:46]} {[%emt
00:00:33]} 6. O-O {[%clk 00:44:31]} {[%emt 00:00:10]} e5 {[%clk 00:41:04]}
{[%emt 00:00:53]} 7. e4 {[%clk 00:43:55]} {[%emt 00:00:46]} Bc5 {[%clk
00:38:22]} {[%emt 00:02:51]} 8. h3 {[%clk 00:43:08]} {[%emt 00:00:58]} dxe4
{[%clk 00:36:15]} {[%emt 00:02:17]} 9. hxg4 {[%clk 00:41:32]} {[%emt 00:01:46]}
exf3 {[%clk 00:36:08]} {[%emt 00:00:17]} 10. Qxf3 {[%clk 00:41:38]} {[%emt
00:00:03]} h6 {[%clk 00:33:18]} {[%emt 00:03:00]} 11. g5 {[%clk 00:37:37]}
{[%emt 00:04:11]} hxg5 {[%clk 00:32:24]} {[%emt 00:01:04]} 12. Bxg5 {[%clk
00:37:39]} {[%emt 00:00:07]} Qc7 {[%clk 00:28:04]} {[%emt 00:04:31]} 13. Rab1
{[%clk 00:36:51]} {[%emt 00:00:59]} a5 {[%clk 00:24:46]} {[%emt 00:03:28]} 14.
a3 {[%clk 00:35:32]} {[%emt 00:01:28]} a4 {[%clk 00:23:40]} {[%emt 00:01:16]}
15. Rfe1 {[%clk 00:26:39]} {[%emt 00:09:03]} O-O {[%clk 00:17:23]} {[%emt
00:06:27]} 16. Bh3 {[%clk 00:25:35]} {[%emt 00:01:15]} Nh7 {[%clk 00:13:47]}
{[%emt 00:03:45]} 17. Bd2 {[%clk 00:25:07]} {[%emt 00:00:39]} Bd4 {[%clk
00:12:14]} {[%emt 00:01:42]} 18. Ne4 {[%clk 00:23:08]} {[%emt 00:02:10]} g6
{[%clk 00:10:35]} {[%emt 00:01:49]} 19. c3 {[%clk 00:22:32]} {[%emt 00:00:46]}
Bb6 {[%clk 00:09:30]} {[%emt 00:01:15]} 20. g4 {[%clk 00:19:45]} {[%emt
00:02:56]} Nc5 {[%clk 00:08:02]} {[%emt 00:01:38]} 21. Bh6 {[%clk 00:17:27]}
{[%emt 00:02:28]} Nxe4 {[%clk 00:07:12]} {[%emt 00:01:00]} 22. Rxe4 {[%clk
00:17:16]} {[%emt 00:00:22]} Rfe8 {[%clk 00:06:48]} {[%emt 00:00:34]} 23. Rbe1
{[%clk 00:16:22]} {[%emt 00:01:03]} Re7 {[%clk 00:04:45]} {[%emt 00:02:13]} 24.
d4 {[%clk 00:15:39]} {[%emt 00:00:53]} Rae8 {[%clk 00:04:23]} {[%emt 00:00:32]}
25. g5 {[%clk 00:13:55]} {[%emt 00:01:54]} exd4 {[%clk 00:03:29]} {[%emt
00:01:04]} 26. Kg2 {[%clk 00:11:12]} {[%emt 00:02:52]} Qd6 {[%clk 00:02:14]}
{[%emt 00:01:26]} 27. c4 {[%clk 00:09:32]} {[%emt 00:01:51]} Bc7 {[%clk
00:01:32]} {[%emt 00:00:52]} 28. Kf1 {[%clk 00:05:26]} {[%emt 00:04:15]} Rxe4
{[%clk 00:00:29]} {[%emt 00:01:13]} 29. Rxe4 {[%clk 00:05:35]} {[%emt
00:00:01]} Re5 {[%clk 00:00:36]} {[%emt 00:00:04]} 30. Rxe5 {[%clk 00:01:23]}
{[%emt 00:04:23]} Qxe5 {[%clk 00:00:44]} {[%emt 00:00:01]} 31. Qg4 {[%clk
00:01:32]} Qe7 {[%clk 00:00:17]} {[%emt 00:00:36]} 32. Qxd4 {[%clk 00:01:32]}
{[%emt 00:00:10]} Be5 {[%clk 00:00:21]} {[%emt 00:00:06]} 33. Qe3 {[%clk
00:01:21]} {[%emt 00:00:22]} Qd6 {[%clk 00:00:17]} {[%emt 00:00:14]} 34. Qe2
{[%clk 00:00:37]} {[%emt 00:00:53]} Qd4 {[%clk 00:00:17]} {[%emt 00:00:10]} 35.
Bc8 {[%clk 00:00:35]} {[%emt 00:00:12]} b6 {[%clk 00:00:21]} {[%emt 00:00:06]}
36. Bd7 {[%clk 00:00:25]} {[%emt 00:00:20]} c5 {[%clk 00:00:13]} {[%emt
00:00:18]} 37. Bxa4 {[%clk 00:00:17]} {[%emt 00:00:18]} Qxb2 {[%clk 00:00:22]}
{[%emt 00:00:02]} 38. Qe4 {[%clk 00:00:24]} {[%emt 00:00:03]} Qc1+ {[%clk
00:00:18]} {[%emt 00:00:13]} 39. Kg2 {[%clk 00:00:33]} {[%emt 00:00:02]} Qf4
{[%clk 00:00:23]} {[%emt 00:00:04]} 40. Qd5 {[%clk 00:00:26]} {[%emt 00:00:17]}
Bd6 {[%clk 00:00:15]} {[%emt 00:00:18]} 41. Be8 {[%clk 00:00:33]} {[%emt
00:00:04]} Qg4+ {[%clk 00:00:18]} {[%emt 00:00:07]} 42. Kf1 {[%clk 00:00:42]}
{[%emt 00:00:01]} Qh3+ {[%clk 00:00:25]} {[%emt 00:00:02]} 43. Ke2 {[%clk
00:00:44]} {[%emt 00:00:08]} Qg4+ {[%clk 00:00:23]} {[%emt 00:00:12]} 44. f3
{[%clk 00:00:17]} {[%emt 00:00:38]} Qg2+ {[%clk 00:00:26]} {[%emt 00:00:06]} 45.
Kd3 {[%clk 00:00:26]} {[%emt 00:00:01]} Qf1+ {[%clk 00:00:31]} {[%emt
00:00:06]} 46. Kc2 {[%clk 00:00:29]} {[%emt 00:00:07]} Qe2+ {[%clk 00:00:36]}
{[%emt 00:00:05]} 47. Kb3 {[%clk 00:00:38]} {[%emt 00:00:01]} Qe3+ {[%clk
00:00:38]} {[%emt 00:00:07]} 48. Ka4 {[%clk 00:00:42]} {[%emt 00:00:07]} Qxe8+
{[%clk 00:00:47]} {[%emt 00:00:01]} 0-1